[Event "1st Serbian League 2022"]
[Site "Vrnjacka Banja"]
[Date "2022.09.20"]
[Round "1.15"]
[White "Nenezic, Marko"]
[Black "Popovic, Dusan"]
[Result "1-0"]
[ECO "E94"]
[WhiteElo "2528"]
[BlackElo "2486"]
[Annotator "TA"]
[PlyCount "91"]
[EventDate "2022.09.20"]
[EventType "team-tourn"]
[EventCountry "SRB"]
[SourceTitle "playchess.com"]
[Source "ChessBase"]
[SourceQuality "1"]
[TimeControl "40/5400+30:1800+30"]

{[%evp 18,91,79,59,97,70,80,68,77,68,72,74,83,62,74,40,47,41,41,38,43,37,55,56,112,66,77,79,199,176,186,166,201,216,214,191,193,199,207,107,110,112,120,116,112,79,94,54,60,31,101,103,103,90,289,279,235,254,326,318,423,419,511,487,508,505,503,461,496,486,460,472,481,451,593,585]} 1. d4 {[%emt 0:00:25]} Nf6 {[%emt 0:00:07]} 2. c4 {[%emt 0:00:14]} g6 {[%emt 0:00:04]} 3. Nc3 {[%emt 0:00:25]} Bg7 {[%emt 0:00:08]} 4. e4 {[%emt 0:00:26]} d6 {[%emt 0:00:07]} 5. Be2 {[%emt 0:00:32]} Nbd7 {[%emt 0:00:17]} 6. Nf3 {[%emt 0:00:30]} e5 {[%emt 0:01:03]} 7. O-O {[%emt 0:00:25]} O-O {[%emt 0:00:35]} 8. Be3 {[%emt 0:00:35]} Qe7 {[%emt 0:01:00]} 9. Qc2 {[%emt 0:00:51]} c6 {[%emt 0:01:59]} 10. d5 {[%emt 0:00:28] BESTDEEP} c5 {[%emt 0:00:37] CPLX 2.1 38 (Nd7-c5) (=38). E94: King's Indian: Classical: 6 Be2 e5 7 0-0: Various Black 7th moves.} 11. Kh1 {[%emt 0:01:22] [#] CPLX 2.0 27 (h2-h3) (=14)} Ng4 $146 {[%emt 0:06:20] CPLX 2.0 10 (Nf6-h5) (=24)} ({Predecessor:} 11... Nh5 12. g3 Ndf6 13. Bg5 Bh3 14. Rfe1 Bd7 15. Nh4 h6 16. Bc1 Ng4 17. Bd1 a6 18. a4 {1-0 (40) Sadhwani,R (2611)-Oratovsky,M (2431) Ovar 2022}) 12. Bg5 {[%emt 0:00:49] CPLX 2.4 12 (Be3-d2) (=13)} f6 {[%emt 0:00:22] CPLX 2.7. White is slightly better.} 13. Bd2 {[%emt 0:00:16] CPLX 2.6} Nh6 {[%emt 0:04:25] BESTDEEP} 14. Bd3 {[%emt 0:01:54] White is much more active. BESTDEEP} Nf7 {[%emt 0:12:43] CPLX 2.0 9 (Nd7-b8) (=11)} 15. Nd1 {[%emt 0:10:10] CPLX 2.0 21 (b2-b3) (=10)} Nb8 {[%emt 0:08:12] CPLX 2.0 12 (Nd7-b6) (=12)} 16. Ne3 {[%emt 0:04:21] CPLX 2.0 34 (a2-a3) (=13)} Nh6 {[%emt 0:01:51] CPLX 2.0 7 (Nb8-a6) (=11)} 17. Rae1 {[%emt 0:25:21] CPLX 2.0} Na6 {[%emt 0:03:15] CPLX 2.0 0 (b7-b6) (=10)} 18. Qc1 {[%emt 0:03:05] CPLX 2.0 3 (a2-a3) (=11)} Bd7 {[%emt 0:09:09] BESTDEEP} 19. a3 {[%emt 0:02:21] CPLX 2.0 6 (b2-b3) (=10)} f5 {[%emt 0:12:22] CPLX 2.0 18 (Na6-c7) (=9)} 20. exf5 {[%emt 0:04:00] CPLX 2.2} gxf5 {[%emt 0:01:45] CPLX 2.6 56 (Nh6xf5) (=14)} ({Black should try} 20... Nxf5 $14 21. Nxf5 gxf5) 21. Nd1 {[%emt 0:01:04] CPLX 2.5 46 (g2-g3) (=12)} (21. g3 $16) 21... Ng4 {[%emt 0:02:09] MISS-Nh6-f7 11 (Nh6-f7) (=13)} 22. Ng5 {[%emt 0:07:57] CPLX 2.9 0 (Nd1-c3) (=11)} e4 {[%emt 0:12:40] CPLX 3.6 120 (Na6-c7) (=22)} (22... Nc7 $16 {might work better.}) 23. f3 $1 $18 {[%emt 0:02:33] CPLX 3.8} Ne5 {[%emt 0:00:33] CPLX 4.3} 24. Be2 {[%emt 0:04:07] CPLX 3.5 20 (Bd3-b1) (=11)} b5 {[%emt 0:06:16] CPLX 3.2 35 (e4xf3) (=21)} 25. cxb5 {[%emt 0:08:11] BESTDEEP} ({Much less strong is} 25. fxe4 Nc7 $16) 25... Nc7 {[%emt 0:01:40] EASY} 26. Nc3 {[%emt 0:00:08] CPLX 3.5} exf3 {[%emt 0:04:06] CPLX 3.5 2 (h7-h6) (=19)} 27. gxf3 {[%emt 0:01:09] RECAPT} Qf6 {[%emt 0:00:25] CPLX 3.4 8 (Ra8-e8) (=18)} 28. f4 {[%emt 0:06:41] CPLX 3.4 100 (Rf1-g1) (=14)} (28. Rg1 $18) 28... Ng4 $16 {[%emt 0:01:22] CPLX 3.6=>BLUNDERREACT} 29. h3 {[%emt 0:01:10] EASY} Qh6 {[%emt 0:00:06] EASY} 30. Bc4 $36 {[%emt 0:02:37][%cal Oe1e6][%mdl 2048] White is really pushing. BESTDEEP} Rae8 {[%emt 0:03:50] Inhibits Re6. CPLX 4.4} 31. Kg2 {[%emt 0:00:29] CPLX 4.6 33 (Qc1-d1) (=14)} Nf6 {[%emt 0:00:11] CPLX 5.1} 32. Rxe8 {[%emt 0:01:37] CPLX 3.7 40 (a3-a4) (=15)} Rxe8 {[%emt 0:00:18] RECAPT} 33. Re1 {[%emt 0:00:27][%cal Bf1e1,Be1e3,Be3g3][%mdl 32] CPLX 3.4 29 (a3-a4) (=15)} Ne4 {[%emt 0:00:46] CPLX 3.7 70 (Qh6-g6) (=17)} (33... Qg6 $14 34. Rxe8+ Nfxe8) 34. Ncxe4 {[%emt 0:01:39] EASY} fxe4 {[%emt 0:00:11] RECAPT} 35. Re3 {[%emt 0:01:01] Strongly threatening Rg3. BESTDEEP} Nxb5 $2 {[%emt 0:03:06] This move loses the game for Black. CPLX 3.9 199 (Kg8-f8) (=23)} (35... Kf8 $16 {keeps fighting.}) 36. Bxb5 $18 {[%emt 0:02:10] RECAPT} Bxb5 {[%emt 0:00:04] [#] RECAPT} 37. Rg3 $1 {[%emt 0:00:15] DEEPSTRONG} ({Not} 37. Rxe4 Rxe4 38. Nxe4 Qg6+ 39. Ng3 Qd3 $17) 37... e3 {[%emt 0:03:55] [#] CPLX 3.5 72 (Qh6-h5) (=24)} 38. Bc3 {[%emt 0:01:15] Bxg7 is the strong threat. BESTDEEP} ({Worse is} 38. Rxe3 Rxe3 39. Bxe3 Qg6 $15) 38... Re7 {[%emt 0:00:01] CPLX 4.5 105 (Bb5-c4) (=27)} 39. Ne6 {[%emt 0:00:46] DEEPSTRONG} Qh5 {[%emt 0:00:15] CPLX 5.1 92 (Bb5-c6) (=29)} 40. Nxg7 {[%emt 0:01:12] CPLX 5.9 24 (Kg2-h2) (=13). White is clearly winning.} Qxd5+ {[%emt 0:01:06] EASY} 41. Kh2 {[%emt 0:30:33][%cal Bg2h2,Bh2g3,Bg3h4][%mdl 32] aiming for Nf5+. CPLX 5.0} Kf7 {[%emt 0:10:57] BESTDEEP} 42. Rxe3 {[%emt 0:00:00] CPLX 5.9 42 (f4-f5) (=13)} Rxe3 {[%emt 0:00:38] CPLX 5.6 35 (Re7-e4) (=27)} 43. Qxe3 {[%emt 0:00:00] RECAPT} Bc6 {[%emt 0:00:04][%csl Gc6][%cal Rd5g2] EASY} 44. Kg3 {[%emt 0:00:00] CPLX 5.5} Qg2+ {[%emt 0:01:11] BESTDEEP} 45. Kh4 {[%emt 0:00:00] Threatening mate with Qe6+. LEGAL} Bd7 {[%emt 0:00:26] Inhibits Qe6+. CPLX 5.0 142 (Qg2-e4) (=29)} 46. Nh5 {[%emt 0:00:00] Weighted Error Value: White=0.15 (very precise) /Black=0.40} 1-0

[Event "1st Serbian League 2022"]
[Site "Vrnjacka Banja"]
[Date "2022.09.20"]
[Round "1.16"]
[White "Boskovic, Drasko"]
[Black "Djukic, Nikola"]
[Result "1/2-1/2"]
[ECO "B30"]
[WhiteElo "2415"]
[BlackElo "2536"]
[Annotator "TA"]
[PlyCount "87"]
[EventDate "2022.09.20"]
[EventType "team-tourn"]
[EventCountry "SRB"]
[SourceTitle "playchess.com"]
[Source "ChessBase"]
[SourceQuality "1"]
[TimeControl "40/5400+30:1800+30"]

{[%evp 17,87,6,12,0,20,0,3,0,0,0,0,-50,-49,-49,-47,-41,-43,-41,-14,-10,-11,-46,-16,-37,-29,-33,0,0,14,14,8,11,28,29,62,62,62,62,62,62,122,102,253,0,8,8,16,16,16,16,16,16,16,0,33,26,33,33,33,0,0,0,0,0,0,0,0,0,0,0,0,0]} 1. e4 {[%emt 0:00:07]} c5 {[%emt 0:00:08]} 2. Nf3 {[%emt 0:00:03]} e6 {[%emt 0:00:09]} 3. d3 {[%emt 0:00:04]} Nc6 {[%emt 0:02:17]} 4. g3 {[%emt 0:00:09]} Nf6 {[%emt 0:02:13]} 5. Bg2 {[%emt 0:00:21]} Be7 {[%emt 0:03:09]} 6. O-O {[%emt 0:00:19]} O-O {[%emt 0:00:35]} 7. Re1 {[%emt 0:00:39]} d6 {[%emt 0:03:34]} 8. c3 {[%emt 0:00:49]} Bd7 {[%emt 0:06:22]} 9. Nbd2 {[%emt 0:11:34]} Qc7 {[%emt 0:07:57] BESTDEEP} 10. a3 {[%emt 0:02:53] CPLX 2.0 12 (b2-b3) (=12). B30: Sicilian: 2...Nc6 3 Bb5, lines without ...g6.} Ne5 {[%emt 0:06:14] CPLX 2.0 20 (b7-b5) (=10)} 11. Nxe5 {[%emt 0:05:05] CPLX 2.5 20 (Qd1-e2) (=16)} dxe5 {[%emt 0:00:08] RECAPT} 12. a4 {[%emt 0:00:14] CPLX 2.0 3 (b2-b3) (=12)} a6 {[%emt 0:09:17] CPLX 2.0} 13. a5 {[%emt 0:18:52] [#] CPLX 2.0} Rad8 $146 {[%emt 0:09:46] CPLX 2.0} ({Predecessor:} 13... Bb5 14. Nc4 Rad8 15. Qe2 Nd7 16. f4 exf4 17. Bxf4 e5 18. Be3 Nb8 19. Nb6 Bxd3 {1-0 (40) De Jong,M (2345)-Hachijan,A (2214) Dieren 2013}) 14. Qb3 {[%emt 0:10:55] CPLX 2.0 50 (b2-b3) (=17)} ({White should try} 14. b3 $11) 14... Bb5 $15 {[%emt 0:02:42] CPLX 2.0} 15. c4 {[%emt 0:00:55] EASY} Be8 {[%emt 0:04:42] BESTDEEP} 16. Qc3 {[%emt 0:03:24] BESTDEEP} Nd7 {[%emt 0:01:12] BESTDEEP} 17. Nb3 {[%emt 0:00:19] CPLX 2.0} Nb8 {[%emt 0:05:07] CPLX 2.1 27 (Be7-d6) (=5)} 18. Be3 {[%emt 0:00:31] CPLX 2.2} Bd6 {[%emt 0:01:56] BESTDEEP} 19. f3 {[%emt 0:03:18][%cal Bf2f3,Bf3f4,Bf4f5][%mdl 32] CPLX 2.2 35 (Qc3-d2) (=12)} Qe7 {[%emt 0:04:30] CPLX 2.2 30 (f7-f5) (=7)} 20. Qc2 {[%emt 0:01:00] CPLX 2.2 21 (Qc3-d2) (=13)} Nc6 {[%emt 0:00:34] CPLX 2.1} 21. Qf2 {[%emt 0:00:09][%cal Re3c5] CPLX 2.1} Nd4 {[%emt 0:00:58] CPLX 2.2 33 (Nc6-b4) (=8)} (21... Nb4 $5 {[%cal Rb4d3]} 22. Red1 (22. Bxc5 $2 Nxd3 23. Bxd6 Qxd6 $19) (22. Nxc5 $2 Rc8 $19) 22... Rc8 $11) 22. Nxd4 {[%emt 0:00:18] CPLX 2.7} exd4 {[%emt 0:05:19] RECAPT 14 (c5xd4) (=9)} 23. Bd2 {[%emt 0:00:07] CPLX 2.3} e5 {[%emt 0:00:36] BESTDEEP} 24. f4 {[%emt 0:00:32] CPLX 2.0} Rb8 {[%emt 0:03:06] CPLX 2.0 17 (e5xf4) (=9)} (24... exf4 {seems wilder.} 25. e5 Bc7 26. gxf4 Bc6) 25. f5 {[%emt 0:15:46][%cal Of5f6] BESTDEEP} b5 {[%emt 0:01:40] CPLX 2.0 33 (Be8-d7) (=10)} 26. axb6 $1 {[%emt 0:00:29] White is more active. EASY} Rxb6 {[%emt 0:00:39] RECAPT} 27. f6 {[%emt 0:00:31] BESTDEEP} Qe6 {[%emt 0:05:31] BESTDEEP} 28. Rf1 {[%emt 0:13:08][%cal Og2h3] BESTDEEP} Bd7 {[%emt 0:01:15] CPLX 3.1 60 (g7-g6) (=12)} (28... g6 $14) 29. fxg7 {[%emt 0:01:04] CPLX 3.2 20 (Bg2-h3) (=8)} Kxg7 {[%emt 0:01:14] [#] CPLX 5.3 151 (Rf8-b8) (=18)} (29... Rfb8 $16) 30. Bg5 $2 {[%emt 0:00:06] MISSDEEP-Bg2-h3 253 (Bg2-h3) (=20)} (30. Bh3 $1 $18 {[%cal Rh3e6][%mdl 512]} f5 31. Bxf5) 30... f6 {[%emt 0:04:52] CPLX 4.0 8 (Qe6-g6) (=18)} 31. Bc1 {[%emt 0:00:06] CPLX 4.1 0 (Bg5-d2) (=19)} Qg4 {[%emt 0:02:51] CPLX 3.8 8 (Qe6-e8) (=17)} 32. Bf3 {[%emt 0:04:50] BESTDEEP} Qg6 {[%emt 0:00:30] CPLX 3.2} 33. Qe2 {[%emt 0:00:58] Threatens to win with Bh5. BESTDEEP} Kh8 {[%emt 0:00:12] CPLX 2.7} 34. Bh5 {[%emt 0:05:30] CPLX 2.6 0 (Rf1-f2) (=17)} Qg7 {[%emt 0:00:06] EASY} 35. g4 {[%emt 0:00:47] CPLX 2.7 16 (Rf1-f2) (=17)} Be7 {[%emt 0:02:45] CPLX 2.7 33 (f6-f5) (=16)} (35... f5 $5) 36. Kh1 {[%emt 0:00:20] BESTDEEP} Rg8 {[%emt 0:01:19][%cal Rd7g4] CPLX 2.6 7 (Rf8-a8) (=16)} 37. h3 {[%emt 0:00:19] CPLX 2.6} Ra8 {[%emt 0:01:56] CPLX 2.6 0 (Rg8-b8) (=15)} 38. Kh2 {[%emt 0:00:40] CPLX 2.6 33 (Ra1-a5) (=16)} a5 {[%emt 0:00:22] CPLX 2.6. The position is equal.} 39. Rf3 {[%emt 0:00:19] CPLX 2.6 0 (Qe2-c2) (=15)} a4 {[%emt 0:00:11] CPLX 2.6} 40. Qf2 {[%emt 0:00:11] CPLX 2.6 0 (Qe2-f1) (=15)} Rf8 {[%emt 0:01:50] CPLX 2.6 0 (Rb6-b4) (=14)} 41. Ra2 {[%emt 0:03:40] CPLX 2.6} Rfb8 {[%emt 0:05:12] CPLX 2.6 0 (Rb6-b3) (=13)} 42. Qg1 {[%emt 0:02:16] CPLX 2.6 0 (Qf2-f1) (=14)} Rb3 {[%emt 0:05:06] CPLX 2.6 0 (Rb6-b4) (=13)} 43. Qd1 {[%emt 0:04:27] CPLX 2.7 0 (Qg1-f1) (=14)} Bc6 {[%emt 0:02:37] CPLX 2.7 0 (Be7-d6) (=13)} 44. Qf1 {[%emt 0:02:37] Weighted Error Value: White=0.13 (very precise) /Black=0.18 (very precise)} 1/2-1/2

[Event "1st Serbian League 2022"]
[Site "Vrnjacka Banja"]
[Date "2022.09.20"]
[Round "1.17"]
[White "Strikovic, Aleksa"]
[Black "Zegarac, Vuk"]
[Result "1/2-1/2"]
[ECO "A20"]
[WhiteElo "2491"]
[BlackElo "2336"]
[Annotator "TA"]
[PlyCount "50"]
[EventDate "2022.09.20"]
[EventType "team-tourn"]
[EventCountry "SRB"]
[SourceTitle "playchess.com"]
[Source "ChessBase"]
[SourceQuality "1"]
[TimeControl "40/5400+30:1800+30"]

{[%evp 9,50,23,33,26,29,34,24,-33,9,-2,3,-17,-17,-49,0,0,0,-3,0,-8,-10,-1,-6,-19,0,0,0,0,0,-40,-30,-30,-37,-27,-32,-33,-8,-18,0,-26,0,-36,0]} 1. c4 {[%emt 0:00:04]} e5 {[%emt 0:00:40]} 2. g3 {[%emt 0:00:09]} Nf6 {[%emt 0:00:32]} 3. Bg2 {[%emt 0:00:06]} h6 {[%emt 0:00:13]} 4. Nf3 {[%emt 0:03:33]} e4 {[%emt 0:11:17]} 5. Nd4 {[%emt 0:01:06]} d5 {[%emt 0:00:27] BESTDEEP} 6. cxd5 {[%emt 0:00:49] CPLX 2.5 7 (Nb1-c3) (=7). A20: English Opening: 1...e5.} Qxd5 {[%emt 0:00:14] RECAPT} 7. Nc2 {[%emt 0:08:20] BESTDEEP} Qh5 {[%emt 0:02:10]} 8. h3 {[%emt 0:02:55] [#] MISSDEEP-Nc2-e3 57 (Nc2-e3) (=21)} ({Better is} 8. Ne3 $1 $11) 8... Bd6 $146 {[%emt 0:07:54] CPLX 2.2 42 (Nb8-c6) (=11)} ({Predecessor:} 8... Bc5 9. Nc3 O-O 10. Nxe4 Nxe4 11. Bxe4 Re8 12. d3 Nc6 13. Be3 Bd6 14. Qd2 Be6 {1-0 (42) Zierk,S (2499)-Riff,V (2405) Chess.com INT 2020}) 9. Nc3 {[%emt 0:00:36] CPLX 2.3 11 (d2-d3) (=19)} Qg6 {[%emt 0:00:13] BESTDEEP} 10. Ne3 {[%emt 0:14:24][%cal Oc3e4] CPLX 2.2 20 (Nc3-b5) (=19)} O-O $1 {[%emt 0:04:09] DEEPSTRONG} 11. Nc4 {[%emt 0:22:25] CPLX 2.2 32 (d2-d4) (=21)} Nc6 {[%emt 0:08:58] CPLX 2.4 49 (Bd6-c5) (=13)} (11... Bc5 $15) 12. Nxd6 $11 {[%emt 0:04:46] DEEPSTRONG} cxd6 {[%emt 0:00:14][%cal Bc7d6,Bd6d5][%mdl 32] RECAPT} 13. d4 {[%emt 0:02:50] CPLX 2.2 3 (d2-d3) (=16)} exd3 {[%emt 0:05:18] CPLX 2.4 3 (Nc6-e7) (=10)} 14. O-O {[%emt 0:02:39] MISS-Qd1xd3 8 (Qd1xd3) (=15)} d5 {[%emt 0:04:51] [#] White must now prevent ...d4. BESTDEEP} 15. exd3 {[%emt 0:02:16] CPLX 2.8} Bf5 {[%emt 0:02:27] CPLX 2.5} 16. Ne2 {[%emt 0:00:10] BESTDEEP} Nb4 {[%emt 0:06:25] CPLX 2.5 19 (Qg6-h7) (=9)} (16... Bxd3 $2 17. Nf4 Bc2 18. Nxg6 $18) 17. Nf4 {[%emt 0:01:16] EASY} Qh7 {[%emt 0:00:35] EASY} 18. Qb3 {[%emt 0:07:17][%csl LRb4,LRd5] CPLX 2.7 0 (Bc1-e3) (=11)} Nxd3 {[%emt 0:03:40] EASY} 19. Nxd5 {[%emt 0:00:29] CPLX 3.2 40 (Qb3xb7) (=13)} Nxd5 {[%emt 0:01:39] RECAPT} 20. Qxd5 {[%emt 0:00:06] RECAPT} Nb4 {[%emt 0:04:52][%cal Bd3b4,Bb4c2,Bc2d4][%mdl 32] CPLX 3.0 0 (b7-b6) (=7)} 21. Qxb7 {[%emt 0:10:06] EASY} Nc2 {[%emt 0:01:45] CPLX 3.2} 22. Rb1 {[%emt 0:10:07] EASY} Nd4 {[%emt 0:00:53][%mdl 1024] Black has compensation. CPLX 2.9 25 (Ra8-d8) (=8)} (22... Rad8 $5 {[%cal Rc2d4]} 23. Qxa7 Nd4 $11) 23. Ra1 {[%emt 0:00:26] EASY} Nc2 {[%emt 0:00:13] CPLX 3.0 18 (Ra8-d8) (=8)} 24. Rb1 {[%emt 0:00:34] EASY} Nd4 {[%emt 0:00:27] CPLX 2.9 26 (Ra8-d8) (=9)} (24... Rad8 $5 {[%cal Rc2d4]} 25. Qxa7 Nd4 $11) 25. Ra1 {[%emt 0:00:32] EASY} Nc2 {[%emt 0:00:57] Weighted Error Value: White=0.11 (very precise) /Black=0.10 (very precise)} (25... Rad8 $5 {[%cal Rd8d7]} 26. Qxa7 Nc2 $11) 1/2-1/2

[Event "1st Serbian League 2022"]
[Site "Vrnjacka Banja"]
[Date "2022.09.20"]
[Round "1.18"]
[White "Munizaba, Slobodan"]
[Black "Perunovic, Miodrag"]
[Result "0-1"]
[ECO "E68"]
[WhiteElo "2416"]
[BlackElo "2413"]
[Annotator "ChessBase"]
[PlyCount "72"]
[EventDate "2022.09.20"]
[EventType "team-tourn"]
[EventCountry "SRB"]
[SourceTitle "playchess.com"]
[Source "ChessBase"]
[SourceQuality "1"]
[TimeControl "40/5400+30:1800+30"]

1. d4 {[%emt 0:00:07]} Nf6 {[%emt 0:00:08]} 2. Nf3 {[%emt 0:00:08]} g6 {[%emt 0:00:27]} 3. g3 {[%emt 0:00:12]} Bg7 {[%emt 0:00:09]} 4. Bg2 {[%emt 0:00:06]} O-O {[%emt 0:00:10]} 5. O-O {[%emt 0:00:12]} d6 {[%emt 0:00:05]} 6. c4 {[%emt 0:00:31]} Nbd7 {[%emt 0:00:10]} 7. Nc3 {[%emt 0:00:54]} e5 {[%emt 0:00:03]} 8. Qc2 {[%emt 0:01:05]} c6 {[%emt 0:16:50]} 9. Rd1 {[%emt 0:03:20]} Qe7 {[%emt 0:03:08]} 10. e4 {[%emt 0:06:09]} exd4 {[%emt 0:03:14]} 11. Nxd4 {[%emt 0:00:07]} Re8 {[%emt 0:01:38]} 12. b3 {[%emt 0:07:09]} Nc5 {[%emt 0:04:59]} 13. f3 {[%emt 0:06:56]} Nfd7 {[%emt 0:07:42]} 14. Bb2 {[%emt 0:04:56]} a5 {[%emt 0:00:50]} 15. Rd2 {[%emt 0:06:06]} a4 {[%emt 0:12:31]} 16. Rad1 {[%emt 0:02:41]} axb3 {[%emt 0:00:43]} 17. axb3 {[%emt 0:00:06]} Ne5 {[%emt 0:01:09]} 18. Nde2 {[%emt 0:20:10]} Qc7 {[%emt 0:05:54]} 19. Nc1 {[%emt 0:00:43]} f5 {[%emt 0:03:47]} 20. Rxd6 {[%emt 0:14:44]} fxe4 {[%emt 0:00:59]} 21. Nxe4 {[%emt 0:00:36]} Bf5 {[%emt 0:08:49]} 22. Bxe5 {[%emt 0:14:16]} Rxe5 {[%emt 0:05:12]} 23. Qf2 {[%emt 0:04:32]} Nxe4 {[%emt 0:05:10]} 24. fxe4 {[%emt 0:00:06]} Bg4 {[%emt 0:00:04]} 25. Ne2 {[%emt 0:01:28]} Bf8 {[%emt 0:03:10]} 26. c5 {[%emt 0:01:44]} Bxd6 {[%emt 0:03:04]} 27. cxd6 {[%emt 0:00:04]} Qd7 {[%emt 0:01:00]} 28. h3 {[%emt 0:02:11]} Rf8 {[%emt 0:01:58]} 29. Qe3 {[%emt 0:00:36]} Bxh3 {[%emt 0:01:53]} 30. Qd4 {[%emt 0:01:07]} Ree8 {[%emt 0:04:00]} 31. Nf4 {[%emt 0:01:39]} Bxg2 {[%emt 0:00:08]} 32. Kxg2 {[%emt 0:00:05]} Qg4 {[%emt 0:04:56]} 33. d7 {[%emt 0:00:52]} Rd8 {[%emt 0:00:17]} 34. e5 {[%emt 0:01:10]} Rxf4 {[%emt 0:00:29]} 35. Qxf4 {[%emt 0:00:37]} Qxd1 {[%emt 0:00:03]} 36. Qf6 {[%emt 0:00:29]} Rxd7 {[%emt 0:03:41]} 0-1

[Event "1st Serbian League 2022"]
[Site "Vrnjacka Banja"]
[Date "2022.09.20"]
[Round "1.19"]
[White "Budisavljevic, Luka"]
[Black "Predojevic, Borki"]
[Result "1/2-1/2"]
[ECO "D12"]
[WhiteElo "2524"]
[BlackElo "2584"]
[Annotator "TA"]
[PlyCount "63"]
[EventDate "2022.09.20"]
[EventType "team-tourn"]
[EventCountry "SRB"]
[SourceTitle "playchess.com"]
[Source "ChessBase"]
[SourceQuality "1"]
[TimeControl "40/5400+30:1800+30"]

{[%evp 22,63,10,8,10,8,10,11,13,10,4,3,22,19,26,17,24,15,18,16,25,26,37,31,30,29,16,6,6,6,12,8,14,4,16,0,0,0,45,45,51,16,18,12]} 1. d4 {[%emt 0:00:04]} d5 {[%emt 0:00:11]} 2. Nf3 {[%emt 0:00:19]} Nf6 {[%emt 0:00:25]} 3. e3 {[%emt 0:00:07]} c6 {[%emt 0:05:32]} 4. c4 {[%emt 0:00:50]} a6 {[%emt 0:01:15]} 5. b3 {[%emt 0:02:48]} Bf5 {[%emt 0:03:23]} 6. Bd3 {[%emt 0:00:28]} Bxd3 {[%emt 0:01:51]} 7. Qxd3 {[%emt 0:00:07]} e6 {[%emt 0:00:04]} 8. O-O {[%emt 0:00:43]} Nbd7 {[%emt 0:00:50]} 9. Nbd2 {[%emt 0:00:54]} Be7 {[%emt 0:02:25]} 10. Bb2 {[%emt 0:02:54]} O-O {[%emt 0:00:40]} 11. e4 {[%emt 0:00:28]} dxe4 {[%emt 0:06:11]} 12. Nxe4 {[%emt 0:00:07] RECAPT} Nxe4 {[%emt 0:04:38] RECAPT 2 (Qd8-c7) (=2). D12: Slav Defence: 3 Nf3 Nf6 4 e3 Bf5.} 13. Qxe4 {[%emt 0:01:00] RECAPT} Re8 {[%emt 0:04:23] BESTDEEP} 14. Rfe1 {[%emt 0:03:57]} Qc7 {[%emt 0:12:45] CPLX 2.4} 15. Rad1 {[%emt 0:02:33] CPLX 2.5} Rad8 {[%emt 0:06:40] [#] CPLX 2.5} 16. h3 $146 {[%emt 0:02:39] CPLX 2.5 1 (Bb2-c3) (=0)} ({Predecessor:} 16. Qc2 Bf6 17. Nd2 c5 18. Ne4 Bxd4 19. Bxd4 cxd4 20. Rxd4 Nf8 21. Rdd1 Rxd1 22. Rxd1 {½-½ (30) Hoelzl,F (2295)-Neyman,I (2330) Austria 2019}) 16... Nf6 {[%emt 0:14:28] CPLX 2.5 19 (b7-b5) (=4)} 17. Qe3 {[%emt 0:01:11] MISS-Qe4-e5 3 (Qe4-e5) (=1)} Qc8 {[%emt 0:04:24] CPLX 2.2 7 (Be7-d6) (=5)} 18. Rd3 {[%emt 0:04:08] CPLX 2.1 9 (Nf3-e5) (=2)} c5 {[%emt 0:04:15] CPLX 2.1 7 (Nf6-d7) (=5)} 19. Red1 {[%emt 0:01:58] CPLX 2.2 9 (Nf3-e5) (=3)} cxd4 {[%emt 0:03:34] CPLX 2.2 3 (b7-b5) (=5)} 20. Bxd4 {[%emt 0:01:32] RECAPT} Nd7 {[%emt 0:01:26] CPLX 2.3 9 (b7-b5) (=5)} 21. Ne5 {[%emt 0:03:58] CPLX 2.4} Nxe5 {[%emt 0:01:24] BESTDEEP} 22. Qxe5 {[%emt 0:01:07][%csl Gd4][%cal Re5g7] [#] RECAPT} f6 {[%emt 0:08:45] CPLX 3.7} 23. Qe4 {[%emt 0:00:23] CPLX 2.5 1 (Qe5-a5) (=2)} Rd6 {[%emt 0:00:17] CPLX 2.6} 24. Be3 {[%emt 0:06:31] CPLX 2.7 10 (c4-c5) (=3)} Red8 {[%emt 0:06:25] aiming for ...f5. CPLX 2.7} 25. Rxd6 {[%emt 0:01:20] CPLX 2.7} Rxd6 {[%emt 0:00:27] RECAPT 6 (Be7xd6) (=4)} 26. Rxd6 {[%emt 0:00:31] RECAPT} Bxd6 $11 {[%emt 0:00:05][%mdl 4096] Endgame KQB-KQB. RECAPT} 27. c5 {[%emt 0:00:50] CPLX 2.0 10 (Be3-d4) (=3)} Be5 {[%emt 0:04:37] CPLX 2.3 12 (Bd6-e7) (=4)} 28. b4 {[%emt 0:01:39] CPLX 2.2 16 (f2-f4) (=3)} Qc6 {[%emt 0:00:23] CPLX 2.1 0 (Qc8-d7) (=4)} 29. Qc4 {[%emt 0:01:57] CPLX 2.5 0 (Qe4-d3) (=3)} b5 {[%emt 0:01:53] CPLX 2.4 45 (Kg8-f7) (=6)} 30. Qd3 {[%emt 0:00:54] CPLX 2.7} Bc7 {[%emt 0:00:38] CPLX 3.0} 31. Kf1 {[%emt 0:08:30] CPLX 2.5 35 (Be3-d2) (=5)} g6 {[%emt 0:00:10] BESTDEEP} 32. f3 {[%emt 0:03:01] Weighted Error Value: White=0.06 (flawless) /Black=0.05 (flawless)} 1/2-1/2